fUST/lending_fUST_20250212
["ID","MTS","AMOUNT","RATE_DAILY","PERIOD"]
[352762199,1739297436465,-500.0,0.00010958,2]
[352762200,1739297436478,-500.0,0.00010958,2]
[352762201,1739297436487,-500.0,0.00010958,2]
[352762202,1739297436496,-500.0,0.00010958,2]
[352762203,1739297436506,-500.0,0.00010958,2]
[352762204,1739297436516,-500.0,0.00010958,2]
[352762205,1739297436527,-500.0,0.00010958,2]
[352762206,1739297436536,-500.0,0.00010958,2]
[352762207,1739297436547,-500.0,0.00010958,2]
[352762208,1739297436557,-1141.73,0.00010958,2]
[352762209,1739297436567,-500.0,0.00010958,2]
[352762210,1739297436577,-500.0,0.00010958,2]
[352762211,1739297436587,-773.97,0.00010958,2]
[352762212,1739297436596,-500.0,0.00010958,2]
[352762213,1739297436605,-500.0,0.00010958,2]
[352762214,1739297436614,-520.68537401,0.00010958,2]
[352762215,1739297436624,-500.0,0.00010958,2]
[352762216,1739297436633,-500.0,0.00010958,2]
[352762217,1739297436643,-500.0,0.00010958,2]
[352762218,1739297436652,-500.0,0.00010958,2]
[352762219,1739297436661,-500.0,0.00010958,2]
[352762220,1739297436670,-500.0,0.00010958,2]
[352762221,1739297436680,-500.0,0.00010958,2]
[352762222,1739297436689,-500.0,0.00010958,2]
[352762223,1739297436698,-500.0,0.00010958,2]
[352762224,1739297436707,-500.0,0.00010958,2]
[352762225,1739297436717,-1233.03,0.00010958,2]
[352762226,1739297436727,-500.0,0.00010958,2]
[352762227,1739297436736,-500.0,0.00010958,2]
[352762228,1739297436745,-5001.88,0.00010958,2]
[352762229,1739297436754,-5001.88,0.00010958,2]
[352762230,1739297436763,-5001.88,0.00010958,2]
[352762231,1739297436774,-5001.88,0.00010958,2]
[352762232,1739297436783,-5001.88,0.00010958,2]
[352762233,1739297436793,-5001.88,0.00010958,2]
[352762234,1739297436802,-5001.88,0.00010958,2]
[352762235,1739297436811,-2132.55,0.00010958,2]
[352762236,1739297436820,-5001.88,0.00010958,2]
[352762237,1739297436829,-5001.88,0.00010958,2]
[352762238,1739297436839,-5001.88,0.00010958,2]
[352762239,1739297436848,-5001.88,0.00010958,2]
[352762240,1739297436858,-4140.84838516,0.00010958,2]
[352762252,1739297438274,-500.0,0.00010957,2]
[352762253,1739297438284,-500.0,0.00010957,2]
[352762254,1739297438294,-500.0,0.00010957,2]
[352762255,1739297438304,-189.76644409,0.00010957,2]
[352762256,1739297438314,-500.0,0.00010957,2]
[352762257,1739297438323,-500.0,0.00010957,2]
[352762258,1739297438333,-500.0,0.00010957,2]
[352762259,1739297438343,-500.0,0.00010957,2]
[352762260,1739297438354,-500.0,0.00010957,2]
[352762261,1739297438364,-500.0,0.00010957,2]
[352762262,1739297438373,-486.45451959,0.00010957,2]
[352762263,1739297438385,-13.54548041,0.00010957,2]
[352762264,1739297438400,-500.0,0.00010957,2]
[352762265,1739297438409,-500.0,0.00010957,2]
[352762266,1739297438419,-500.0,0.00010957,2]
[352762267,1739297438430,-500.0,0.00010957,2]
[352762269,1739297438439,-500.0,0.00010957,2]
[352762271,1739297438449,-500.0,0.00010957,2]
[352762273,1739297438459,-500.0,0.00010957,2]
[352762275,1739297438469,-500.0,0.00010957,2]
[352762277,1739297438482,-500.0,0.00010957,2]
[352762280,1739297438491,-500.0,0.00010957,2]
[352762283,1739297438500,-500.0,0.00010957,2]
[352762285,1739297438510,-500.0,0.00010957,2]
[352762287,1739297438521,-500.0,0.00010957,2]
[352762289,1739297438531,-500.0,0.00010957,2]
[352762291,1739297438541,-500.0,0.00010957,2]
[352762293,1739297438552,-500.0,0.00010957,2]
[352762294,1739297438562,-500.0,0.00010957,2]
[352762295,1739297438571,-500.0,0.00010957,2]
[352762296,1739297438581,-500.0,0.00010957,2]
[352762297,1739297438591,-500.0,0.00010957,2]
[352762298,1739297438600,-500.0,0.00010957,2]
[352762299,1739297438610,-500.0,0.00010957,2]
[352762300,1739297438619,-500.0,0.00010957,2]
[352762301,1739297438629,-500.0,0.00010957,2]
[352762302,1739297438641,-500.0,0.00010957,2]
[352762303,1739297438650,-500.0,0.00010957,2]
[352762304,1739297438660,-500.0,0.00010957,2]
[352762305,1739297438670,-500.0,0.00010957,2]
[352762306,1739297438679,-500.0,0.00010957,2]
[352762307,1739297438689,-319.85786112,0.00010957,2]
[352762308,1739297438698,-500.0,0.00010957,2]
[352762309,1739297438707,-500.0,0.00010957,2]
[352762310,1739297438717,-500.0,0.00010957,2]
[352762311,1739297438727,-500.0,0.00010957,2]
[352762312,1739297438736,-500.0,0.00010957,2]
[352762313,1739297438746,-500.0,0.00010957,2]
[352762314,1739297438755,-500.0,0.00010957,2]
[352762315,1739297438764,-500.0,0.00010957,2]
[352762316,1739297438774,-861.03161484,0.00010958,2]
[352762317,1739297438784,-5001.88,0.00010958,2]
[352762318,1739297438793,-500.0,0.00010958,2]
[352762319,1739297438804,-5001.88,0.00010958,2]
[352762320,1739297438814,-5001.88,0.00010958,2]
[352762321,1739297438823,-5001.88,0.00010958,2]
[352762322,1739297438833,-500.0,0.00010958,2]
[352762323,1739297438842,-5001.88,0.00010958,2]
[352762324,1739297438852,-5001.88,0.00010958,2]
[352762325,1739297438862,-5001.88,0.00010958,2]
[352762326,1739297438872,-5001.88,0.00010958,2]
[352762327,1739297438882,-5001.88,0.00010958,2]
[352762328,1739297438893,-5001.88,0.00010958,2]
[352762329,1739297438903,-5001.88,0.00010958,2]
[352762330,1739297438914,-500.0,0.00010958,2]
[352762331,1739297438923,-500.0,0.00010958,2]
[352762332,1739297438933,-5002.09568675,0.00010958,2]
[352762333,1739297438943,-16393.58,0.00010958,2]
[352762334,1739297438953,-500.0,0.00010958,2]
[352762335,1739297438963,-500.0,0.00010958,2]
[352762336,1739297438975,-500.0,0.00010958,2]
[352762337,1739297438984,-238.97526762,0.00010958,2]
[352762338,1739297438994,-500.0,0.00010958,2]
[352762339,1739297439004,-500.0,0.00010958,2]
[352762340,1739297439013,-500.0,0.00010958,2]
[352762341,1739297439023,-500.0,0.00010958,2]
[352762342,1739297439033,-500.0,0.00010958,2]
[352762343,1739297439043,-500.0,0.00010958,2]
[352762344,1739297439052,-910.31,0.00010958,2]
[352762345,1739297439061,-7999.71,0.00010958,2]
[352762346,1739297439071,-566.65723663,0.00010958,2]
[352762347,1739297439080,-500.0,0.00010958,2]
[352762348,1739297439089,-1162.34,0.00010958,2]
[352762349,1739297439099,-2174.34,0.00010958,2]
[352762350,1739297439109,-500.0,0.00010958,2]
[352762351,1739297439119,-574.65,0.00010958,2]
[352762352,1739297439128,-1531.43,0.00010958,2]
[352762353,1739297439137,-500.0,0.00010958,2]
[352762354,1739297439148,-1085.28,0.00010958,2]
[352762355,1739297439157,-863.4,0.00010958,2]
[352762356,1739297439167,-500.0,0.00010958,2]
[352762357,1739297439176,-500.0,0.00010958,2]
[352762358,1739297439186,-500.0,0.00010958,2]
[352762359,1739297439195,-500.0,0.00010958,2]
[352762360,1739297439205,-500.0,0.00010958,2]
[352762361,1739297439215,-722.31,0.00010958,2]
[352762362,1739297439223,-500.0,0.00010958,2]
[352762363,1739297439235,-500.0,0.00010958,2]
[352762364,1739297439245,-500.0,0.00010958,2]
[352762365,1739297439255,-500.0,0.00010958,2]
[352762366,1739297439265,-500.0,0.00010958,2]
[352762367,1739297439274,-500.0,0.00010958,2]
[352762368,1739297439284,-500.0,0.00010958,2]
[352762369,1739297439293,-722.62,0.00010958,2]
[352762370,1739297439303,-500.0,0.00010958,2]
[352762371,1739297439312,-2750.74,0.00010958,2]
[352762372,1739297439322,-500.0,0.00010958,2]
[352762373,1739297439331,-484.71736344,0.00010958,2]
[352762374,1739297439341,-1022.28,0.00010958,2]
[352762375,1739297439350,-500.0,0.00010958,2]
[352762376,1739297439360,-1186.69,0.00010958,2]
[352762377,1739297439369,-500.0,0.00010958,2]
[352762378,1739297439379,-500.0,0.00010958,2]
[352762379,1739297439388,-500.0,0.00010958,2]
[352762380,1739297439399,-500.0,0.00010958,2]
[352762381,1739297439409,-500.0,0.00010958,2]
[352762382,1739297439419,-500.0,0.00010958,2]
[352762383,1739297439428,-677.32,0.00010958,2]
[352762384,1739297439439,-500.0,0.00010958,2]
[352762385,1739297439449,-500.0,0.00010958,2]
[352762386,1739297439458,-500.0,0.00010958,2]
[352762387,1739297439467,-1375.78,0.00010958,2]
[352762388,1739297439480,-1586.49,0.00010958,2]
[352762389,1739297439489,-543.90341285,0.00010958,2]
[352762390,1739297439499,-500.0,0.00010958,2]
[352762391,1739297439509,-460.60915205,0.00010958,2]
[352762392,1739297439519,-500.0,0.00010958,2]
[352762393,1739297439529,-500.0,0.00010958,2]
[352762394,1739297439539,-500.0,0.00010958,2]
[352762395,1739297439551,-500.0,0.00010958,2]
[352762396,1739297439561,-500.0,0.00010958,2]
[352762397,1739297439571,-500.0,0.00010958,2]
[352762398,1739297439580,-500.0,0.00010958,2]
[352762399,1739297439590,-500.0,0.00010958,2]
[352762400,1739297439600,-744.53,0.00010958,2]
[352762401,1739297439610,-500.0,0.00010958,2]
[352762402,1739297439620,-500.0,0.00010958,2]
[352762403,1739297439630,-500.0,0.00010958,2]
[352762404,1739297439639,-745.71,0.00010958,2]
[352762406,1739297439650,-4832.77,0.00010958,2]
[352762407,1739297439659,-246.64283286,0.00010958,2]
[352762408,1739297439669,-690.63,0.00010958,2]
[352762410,1739297439678,-493.06563202,0.00010958,2]
[352762411,1739297439688,-500.0,0.00010958,2]
[352762412,1739297439697,-500.0,0.00010958,2]
[352762413,1739297439706,-169.02,0.00010958,2]
[352762414,1739297439716,-500.60717225,0.00010958,2]
[352762415,1739297439725,-500.0,0.00010958,2]
[352762416,1739297439735,-500.0,0.00010958,2]
[352762417,1739297439744,-501.39201067,0.00010958,2]
[352762418,1739297439754,-500.0,0.00010958,2]
[352762419,1739297439763,-936.29,0.00010958,2]
[352762420,1739297439773,-500.0,0.00010958,2]
[352762421,1739297439783,-500.0,0.00010958,2]
[352762422,1739297439792,-250.450633,0.00010958,2]
[352762423,1739297439802,-500.0,0.00010958,2]
[352762424,1739297439811,-654.63,0.00010958,2]
[352762425,1739297439821,-250.450633,0.00010958,2]
[352762426,1739297439830,-151.0,0.00010959,2]
[352762427,1739297439840,-151.0,0.00010959,2]
[352762428,1739297439849,-151.0,0.00010959,2]
[352762429,1739297439858,-151.0,0.00010959,2]
[352762430,1739297439868,-151.0,0.00010959,2]
[352762431,1739297439877,-151.0,0.00010959,2]
[352762432,1739297439887,-199.646723,0.00010959,2]
[352762433,1739297439897,-199.646723,0.00010959,2]
[352762435,1739297439907,-259.602411,0.00010959,2]
[352762436,1739297439916,-151.0,0.00010959,2]
[352762437,1739297439925,-177.03323,0.00010959,2]
[352762438,1739297439935,-151.0,0.00010959,2]
[352762439,1739297439945,-261.343736,0.00010959,2]
[352762441,1739297439954,-151.0,0.00010959,2]
[352762442,1739297439963,-261.343736,0.00010959,2]
[352762443,1739297439972,-151.0,0.00010959,2]
[352762444,1739297439982,-151.0,0.00010959,2]
[352762445,1739297439992,-151.0,0.00010959,2]
[352762446,1739297440001,-151.0,0.00010959,2]
[352762448,1739297440010,-151.0,0.00010959,2]
[352762450,1739297440019,-151.0,0.00010959,2]
[352762452,1739297440029,-153.330212,0.00010959,2]
[352762454,1739297440039,-165.380321,0.00010959,2]
[352762455,1739297440049,-165.380321,0.00010959,2]
[352762456,1739297440058,-917.956859,0.00010959,2]
[352762457,1739297440067,-165.380321,0.00010959,2]
[352762458,1739297440076,-165.380321,0.00010959,2]
[352762459,1739297440086,-917.956859,0.00010959,2]
[352762460,1739297440095,-151.0,0.00010959,2]
[352762461,1739297440104,-1540.637549,0.00010959,2]
[352762462,1739297440114,-1540.637549,0.00010959,2]
[352762463,1739297440123,-152.582631,0.00010959,2]
[352762464,1739297440132,-1540.637549,0.00010959,2]
[352762465,1739297440141,-1540.637549,0.00010959,2]
[352762466,1739297440151,-151.0,0.00010959,2]
[352762467,1739297440160,-151.0,0.00010959,2]
[352762468,1739297440169,-168.594943,0.00010959,2]
[352762470,1739297440179,-151.0,0.00010959,2]
[352762471,1739297440188,-168.594943,0.00010959,2]
[352762472,1739297440197,-151.0,0.00010959,2]
[352762473,1739297440206,-151.0,0.00010959,2]
[352762474,1739297440216,-151.0,0.00010959,2]
[352762475,1739297440225,-151.0,0.00010959,2]
[352762476,1739297440234,-500.0,0.00010973,2]
[352762477,1739297440244,-500.0,0.00010973,2]
[352762478,1739297440253,-500.0,0.00010973,2]
[352762479,1739297440262,-500.0,0.00010973,2]
[352762480,1739297440272,-500.0,0.00010973,2]
[352762481,1739297440281,-500.0,0.00010973,2]
[352762482,1739297440291,-517.07307425,0.00010973,2]
[352762483,1739297440300,-500.0,0.00010973,2]
[352762484,1739297440309,-500.0,0.00010973,2]
[352762485,1739297440319,-500.0,0.00010973,2]
[352762486,1739297440328,-500.0,0.00010973,2]
[352762487,1739297440338,-500.0,0.00010973,2]
[352762488,1739297440347,-500.0,0.00010973,2]
[352762489,1739297440356,-500.0,0.00010973,2]
[352762490,1739297440365,-151.0,0.00010973,2]
[352762491,1739297440374,-205.421936,0.00010973,2]
[352762492,1739297440383,-151.0,0.00010973,2]
[352762493,1739297440394,-151.0,0.00010973,2]
[352762494,1739297440403,-151.0,0.00010973,2]
[352762495,1739297440413,-250.450633,0.00010973,2]
[352762496,1739297440422,-151.0,0.00010973,2]
[352762497,1739297440431,-250.450633,0.00010973,2]
[352762498,1739297440440,-187.505,0.00010977,2]
[352762499,1739297440450,-150.0,0.00010977,2]
[352762500,1739297440459,-150.0,0.00010977,2]
[352762501,1739297440469,-289.572338,0.00010997,2]
[352762502,1739297440480,-199.646723,0.00010997,2]
[352762503,1739297440489,-199.646723,0.00010997,2]
[352762504,1739297440499,-151.0,0.00010997,2]
[352762505,1739297440509,-261.343736,0.00010997,2]
[352762507,1739297440519,-151.0,0.00010997,2]
[352762508,1739297440527,-261.343736,0.00010997,2]
[352762509,1739297440536,-151.0,0.00010997,2]
[352762510,1739297440546,-151.0,0.00010997,2]
[352762511,1739297440556,-151.0,0.00010997,2]
[352762512,1739297440566,-151.0,0.00010997,2]
[352762513,1739297440575,-151.0,0.00010997,2]
[352762514,1739297440584,-917.956859,0.00010997,2]
[352762515,1739297440594,-917.956859,0.00010997,2]
[352762516,1739297440603,-168.594943,0.00010997,2]
[352762518,1739297440612,-168.594943,0.00010997,2]
[352762520,1739297440622,-785.46,0.00010998,2]
[352762521,1739297440631,-785.46,0.00010998,2]
[352762522,1739297440640,-785.46,0.00010998,2]
[352762524,1739297440651,-785.46,0.00010998,2]
[352762525,1739297440660,-785.46,0.00010998,2]
[352762526,1739297440670,-785.46,0.00010998,2]
[352762527,1739297440679,-785.46,0.00010998,2]
[352762528,1739297440688,-785.46,0.00010998,2]
[352762529,1739297440697,-785.46,0.00010998,2]
[352762530,1739297440707,-785.46,0.00010998,2]
[352762531,1739297440717,-151.0,0.00010998,2]
[352762532,1739297440727,-151.0,0.00010998,2]
[352762533,1739297440736,-811.407641,0.00010998,2]
[352762534,1739297440747,-811.407641,0.00010998,2]
[352762535,1739297440757,-15321.60984845,0.00010999,5]
[352762536,1739297440767,-33227.32901664,0.00010999,2]
[352762537,1739297440888,-26219.22539705,0.00010999,2]
[352762538,1739297440907,-217330.34766277,0.00010999,2]
[352762539,1739297440916,-283.48868724,0.00010999,2]
[352762540,1739297440926,-151.0,0.00010999,2]
[352762541,1739297440935,-151.0,0.00010999,2]
[352762542,1739297440945,-151.0,0.00010999,2]
[352762543,1739297440954,-151.0,0.00010999,2]
[352762544,1739297440963,-151.0,0.00010999,2]
[352762545,1739297440972,-151.0,0.00010999,2]
[352762546,1739297440981,-151.0,0.00010999,2]
[352762547,1739297440990,-151.0,0.00010999,2]
[352762548,1739297441000,-154.137068,0.00010999,2]
[352762549,1739297441009,-151.0,0.00010999,2]
[352762550,1739297441019,-151.820404,0.00010999,2]
[352762551,1739297441028,-151.0,0.00010999,2]
[352762552,1739297441037,-151.0,0.00010999,2]
[352762553,1739297441046,-151.0,0.00010999,2]
[352762554,1739297441055,-151.0,0.00010999,2]
[352762555,1739297441064,-240.320738,0.00010999,2]
[352762556,1739297441073,-811.407641,0.00010999,2]
[352762557,1739297441082,-811.407641,0.00010999,2]
[352762558,1739297441091,-199.646723,0.00010999,2]
[352762559,1739297441101,-199.646723,0.00010999,2]
[352762560,1739297441110,-151.0,0.00010999,2]
[352762561,1739297441119,-261.343736,0.00010999,2]
[352762562,1739297441129,-261.343736,0.00010999,2]
[352762563,1739297441139,-151.0,0.00010999,2]
[352762564,1739297441153,-151.0,0.00010999,2]
[352762565,1739297441163,-237.78348,0.00010999,2]
[352762566,1739297441172,-151.0,0.00010999,2]
[352762567,1739297441182,-165.380321,0.00010999,2]
[352762568,1739297441191,-917.956859,0.00010999,2]
[352762569,1739297441201,-165.380321,0.00010999,2]
[352762570,1739297441211,-917.956859,0.00010999,2]
[352762571,1739297441220,-151.0,0.00010999,2]
[352762572,1739297441230,-1540.637549,0.00010999,2]
[352762573,1739297441239,-1540.637549,0.00010999,2]
[352762574,1739297441248,-155.775724,0.00010999,2]
[352762575,1739297441258,-168.594943,0.00010999,2]
[352762576,1739297441267,-168.594943,0.00010999,2]
[352762577,1739297441277,-151.0,0.00010999,2]
[352762578,1739297441287,-151.0,0.00010999,2]
[352762579,1739297441296,-250.450633,0.00010999,2]
[352762580,1739297441306,-250.450633,0.00010999,2]
[352762581,1739297441316,-1340.07,0.00011,2]
[352762582,1739297441326,-309766.43313951,0.00011,2]
[352762584,1739297442622,-2186.94886475,0.00011,2]
[352762624,1739297443401,-588.25,0.00010958,2]
[352762625,1739297443411,-500.0,0.00010958,2]
[352762626,1739297443422,-46962.364803,0.00011,2]
[352762627,1739297443434,-7109.6169057,0.00011,2]
[352762628,1739297443445,-9600.0,0.00011,2]
[352762630,1739297443458,-480.08,0.00011,2]
[352762655,1739297446342,-316.67670122,0.00010957,2]
[352762657,1739297446351,-1717.79615963,0.00011,2]
[352762663,1739297446402,-1254.14016642,0.00011,2]
[352762770,1739298445139,-300.0,9.892e-05,2]
[352762771,1739298445161,-119.04756,9.893e-05,2]
[352762774,1739298546102,-2185.9663213,9.774e-05,2]
[352762775,1739298546126,-300.0,9.892e-05,2]
[352762776,1739298546152,-12768.58326618,9.893e-05,2]
[352762777,1739298552089,-7043.22550586,9.893e-05,2]
[352762778,1739298561133,-2288.98494454,9.893e-05,2]
[352762838,1739298633204,-2680.15872342,9.893e-05,2]
[352762839,1739298633216,-2300.0,0.00010102,2]
[352762840,1739298633226,-154.711,0.0001045,2]
[352762841,1739298633235,-165.8553,0.00010559,2]
[352762842,1739298633245,-994.37988613,0.00010858,2]
[352762843,1739298633255,-994.37988609,0.00010869,2]
[352762844,1739298633265,-994.37988609,0.00010879,2]
[352762845,1739298633275,-300.0,0.00010889,2]
[352762846,1739298633285,-994.37988609,0.0001089,2]
[352762847,1739298633295,-1626.03245193,0.0001089,2]
[352762848,1739298633306,-224.1287771,0.0001089,2]
[352762849,1739298633317,-994.37988609,0.000109,2]
[352762850,1739298633327,-1109.88908915,0.000109,2]
[352762851,1739298633337,-2637.39695637,0.000109,2]
[352762852,1739298633347,-4624.81546991,0.000109,2]
[352762853,1739298633362,-589.205,0.0001094,2]
[352762854,1739298633373,-414.019,0.0001094,2]
[352762855,1739298633384,-500.0,0.00010956,2]
[352762856,1739298633395,-425.1958186,0.00010956,2]
[352762857,1739298633405,-642.87730203,0.00010956,2]
[352762858,1739298633415,-642.87730203,0.00010956,2]
[352762859,1739298633425,-642.87730203,0.00010956,2]
[352762860,1739298633435,-642.87730203,0.00010956,2]
[352762861,1739298633445,-642.87730203,0.00010956,2]
[352762862,1739298633455,-642.87730203,0.00010956,2]
[352762863,1739298633466,-642.87730203,0.00010956,2]
[352762864,1739298633476,-642.87730203,0.00010956,2]
[352762865,1739298633487,-642.87730203,0.00010956,2]
[352762866,1739298633496,-1155.63990737,0.00010956,2]
[352762867,1739298633506,-1155.63990737,0.00010956,2]
[352762868,1739298633517,-1155.63990737,0.00010956,2]
[352762869,1739298633527,-1155.63990737,0.00010956,2]
[352762870,1739298633537,-1155.63990737,0.00010956,2]
[352762871,1739298633547,-1155.63990737,0.00010956,2]
[352762872,1739298633557,-1155.63990737,0.00010956,2]
[352762873,1739298633567,-1155.63990737,0.00010956,2]
[352762874,1739298633577,-1155.63990737,0.00010956,2]
[352762875,1739298633587,-1155.63990737,0.00010956,2]
[352762876,1739298633598,-1155.63990737,0.00010956,2]
[352762877,1739298633610,-1155.63990737,0.00010956,2]
[352762878,1739298633620,-1155.63990737,0.00010956,2]
[352762879,1739298633630,-1155.63990737,0.00010956,2]
[352762880,1739298633640,-1155.63990737,0.00010956,2]
[352762881,1739298633650,-1155.63990737,0.00010956,2]
[352762882,1739298633660,-1155.63990737,0.00010956,2]
[352762883,1739298633671,-1155.63990737,0.00010956,2]
[352762884,1739298633681,-1155.63990737,0.00010956,2]
[352762885,1739298633692,-1155.63990737,0.00010956,2]
[352762886,1739298633702,-1155.63990737,0.00010956,2]
[352762887,1739298633713,-1155.63990737,0.00010956,2]
[352762888,1739298633723,-1155.63990737,0.00010956,2]
[352762889,1739298633733,-1155.63990734,0.00010956,2]
[352762890,1739298633745,-500.0,0.00010958,2]
[352762891,1739298633755,-500.0,0.00010958,2]
[352762892,1739298633764,-346.27600435,0.00010958,2]
[352762893,1739298633776,-500.0,0.00010958,2]
[352762894,1739298633786,-357.28122064,0.00010958,2]
[352762895,1739298633800,-142.71877936,0.00010958,2]
[352762896,1739298633810,-398.47864668,0.00010958,2]
[352762897,1739298633826,-52.35790914,0.00010958,2]
[352762898,1739298633836,-500.0,0.00010958,2]
[352762899,1739298633846,-500.0,0.00010958,2]
[352762900,1739298633858,-500.0,0.00010958,2]
[352762901,1739298633873,-500.0,0.00010958,2]
[352762902,1739298633884,-500.0,0.00010958,2]
[352762903,1739298633894,-500.0,0.00010958,2]
[352762904,1739298633905,-500.0,0.00010958,2]
[352762905,1739298633915,-285.56613833,0.00010958,2]
[352762906,1739298633926,-500.0,0.00010958,2]
[352762907,1739298633935,-500.0,0.00010958,2]
[352762908,1739298633946,-391.89760911,0.00010958,2]
[352762909,1739298633956,-500.0,0.00010958,2]
[352762910,1739298633966,-500.71530683,0.00010958,2]
[352762911,1739298633977,-520.02946328,0.00010958,2]
[352762912,1739298633987,-500.0,0.00010958,2]
[352762913,1739298633997,-500.0,0.00010958,2]
[352762914,1739298634007,-500.0,0.00010958,2]
[352762915,1739298634017,-500.0,0.00010958,2]
[352762916,1739298634026,-500.0,0.00010958,2]
[352762917,1739298634037,-500.0,0.00010958,2]
[352762918,1739298634047,-500.0,0.00010958,2]
[352762919,1739298634057,-382.00034945,0.00010958,2]
[352762920,1739298634067,-500.0,0.00010958,2]
[352762921,1739298634078,-500.0,0.00010958,2]
[352762922,1739298634088,-500.0,0.00010958,2]
[352762923,1739298634098,-407.83465793,0.00010958,2]
[352762924,1739298634111,-500.0,0.00010958,2]
[352762925,1739298634121,-500.0,0.00010958,2]
[352762926,1739298634130,-500.0,0.00010958,2]
[352762927,1739298634140,-500.0,0.00010958,2]
[352762928,1739298634150,-500.0,0.00010958,2]
[352762929,1739298634160,-500.0,0.00010958,2]
[352762930,1739298634171,-500.0,0.00010958,2]
[352762931,1739298634180,-500.0,0.00010958,2]
[352762932,1739298634190,-500.0,0.00010958,2]
[352762933,1739298634200,-514.01201223,0.00010958,2]
[352762934,1739298634210,-500.0,0.00010958,2]
[352762935,1739298634221,-500.0,0.00010958,2]
[352762936,1739298634231,-500.0,0.00010958,2]
[352762937,1739298634241,-500.0,0.00010958,2]
[352762938,1739298634252,-500.0,0.00010958,2]
[352762939,1739298634261,-500.0,0.00010958,2]
[352762940,1739298634271,-500.0,0.00010958,2]
[352762941,1739298634281,-500.0,0.00010958,2]
[352762942,1739298634291,-513.96777686,0.00010958,2]
[352762943,1739298634301,-500.0,0.00010958,2]
[352762944,1739298634311,-507.53920299,0.00010958,2]
[352762945,1739298634320,-500.0,0.00010958,2]
[352762946,1739298634330,-500.0,0.00010958,2]
[352762947,1739298634339,-500.0,0.00010958,2]
[352762948,1739298634348,-500.0,0.00010958,2]
[352762949,1739298634359,-500.0,0.00010958,2]
[352762950,1739298634369,-500.0,0.00010958,2]
[352762951,1739298634378,-482.9754657,0.00010958,2]
[352762952,1739298634387,-500.0,0.00010958,2]
[352762953,1739298634397,-500.0,0.00010958,2]
[352762954,1739298634406,-500.0,0.00010958,2]
[352762955,1739298634416,-500.0,0.00010958,2]
[352762956,1739298634426,-500.0,0.00010958,2]
[352762957,1739298634437,-500.0,0.00010958,2]
[352762958,1739298634447,-500.0,0.00010958,2]
[352762959,1739298634457,-500.0,0.00010958,2]
[352762960,1739298634467,-500.0,0.00010958,2]
[352762961,1739298634476,-500.0,0.00010958,2]
[352762962,1739298634486,-500.0,0.00010958,2]
[352762963,1739298634496,-500.0,0.00010958,2]
[352762964,1739298634506,-500.0,0.00010958,2]
[352762965,1739298634516,-500.8498799,0.00010958,2]
[352762966,1739298634527,-500.0,0.00010958,2]
[352762967,1739298634537,-500.41416219,0.00010958,2]
[352762968,1739298634547,-500.0,0.00010958,2]
[352762969,1739298634558,-500.0,0.00010958,2]
[352762970,1739298634568,-528.105748,0.00010958,2]
[352762971,1739298634578,-500.0,0.00010958,2]
[352762972,1739298634587,-500.0,0.00010958,2]
[352762973,1739298634597,-500.0,0.00010958,2]
[352762974,1739298634608,-500.0,0.00010958,2]